Cogmind - Beta 17 @@@ ROGUE MODE // 2026.07.23 @ 14:12:13 Player: 3.14 Result: Destroyed by G-34 Mercenary with Small Laser Performance ------------- Evolutions (0) 0 Regions Visited (1) 200 Robots Destroyed (8) 40 Value Destroyed (213) 213 Prototype IDs (0) 0 Alien Tech Used (0) 0 Bonus (0) 0 TOTAL SCORE: 453 Bonus ------- None Cogmind --------- Core Integrity 0/250 Matter 300/300 Energy 100/100 System Corruption 0% Temperature Cool (6) Movement Walking (120) Location -10/Materials Parts ------- > --- POWER (1) -------- (None) > --- PROPULSION (2) --- Aluminum Leg Aluminum Leg > --- UTILITY (2) ------ Small Storage Unit Structural Scanner > --- WEAPON (2) ------- (None) > --- INVENTORY (8) ---- Compact Wheel Peak State ------------ > --- POWER ------------ Ion Engine > --- PROPULSION ------- Light Treads Light Treads > --- UTILITY ---------- Small Storage Unit Structural Scanner > --- WEAPON ----------- (None) > --- INVENTORY -------- Light Ion Engine Aluminum Leg Aluminum Leg Compact Wheel [Rating: 5] Favorites ----------- Power Ion Engine Engine Ion Engine Propulsion Light Treads Treads Light Treads Leg Aluminum Leg Utility Small Storage Unit Device Structural Scanner Storage Small Storage Unit Weapon None Build | -11 -10 ------- Run | Yrd Mat Slots Evolved . | . . Power . | . . Propulsion . | . . Utility . | . . Weapon . | . . Parts Attached 8 | 4 4 Power 2 | 1 1 Engine 2 | 1 1 Core . | . . Reactor . | . . Propulsion 4 | 2 2 Treads 2 | 2 . Leg 2 | . 2 Wheel . | . . Hover . | . . Flight . | . . Utility 2 | 1 1 Device 1 | . 1 Storage 1 | 1 . Processor . | . . Hackware . | . . Protection . | . . Artifact . | . . Weapon . | . . Energy Gun . | . . Energy Cannon . | . . Ballistic Gun . | . . Ballistic Cannon . | . . Launcher . | . . Special Weapon . | . . Impact Weapon . | . . Slashing Weapon . | . . Piercing Weapon . | . . Special Melee Weapon . | . . Unidentified Prototypes . | . . Parts Lost 4 | . 4 Power 2 | . 2 Propulsion 2 | . 2 Utility . | . . Weapon . | . . Highest Loss Streak 2 | . 2 To Critical Strikes . | . . Average Backups 2 | 1 3 Power . | . . Propulsion 2 | 1 2 Utility . | . . Weapon . | . . Tool/Special . | . . Unused Backups 1 | . 1 Power . | . . Propulsion 1 | . 1 Utility . | . . Weapon . | . . Tool/Special . | . . Average Slot Usage (%) 62 | . 62 Engine 9 | . 9 Treads 21 | . 21 Leg 5 | . 5 Device 10 | . 10 Storage 14 | . 14 Peak Build Rating 5 | 4 5 Average Rating 4 | 3 4 On Entrance 2 | . 4 Avg Prop Armor Cover (%) . | . . Naked Turns . | . . Heaviest Build 11 | 10 11 Greatest Support 40 | 40 40 Greatest Overweight (x) . | . . Average Overweight (x) . | . . Largest Inventory Capacity 8 | 8 8 Average Capacity 7 | 6 8 Most Carried 4 | 4 4 Average Carried 2 | 2 3 Final Capacity 8 | 8 8 Final Carried 4 | 4 1 Class Distribution -------------------- 100% | Mutant Dominant Class ---------------- Mutant | -10/Materials Resources | -11 -10 ----------- Run | Yrd Mat Matter Collected 259 | 224 35 Remotely . | . . Salvage Created 57 | . 57 Parts 4 | . 4 Haulers Intercepted . | . . Recyclers Shooed . | . . Parts Field Recycled . | . . Retrieved Matter . | . . Parts Self-Destructed . | . . Prevented . | . . Parts Restored . | . . Kills | -11 -10 ------- Run | Yrd Mat Combat Hostiles Destroyed 8 | . 8 Melee 8 | . 8 Classes Destroyed 2 | . 2 Swarmer 3 | . 3 Grunt 5 | . 5 Best Kill Streak 5 | . 5 Combat Bots Only 5 | . 5 Max Kills in Single Turn 1 | . 1 Gunslinging . | . . Exploded . | . . Melee 1 | . 1 Uniques/NPCs Destroyed . | . . Combat | -11 -10 -------- Run | Yrd Mat Hostile Shots Fired 87 | . 87 Missed 18 | . 18 Hits 69 | . 69 Projectile 69 | . 69 Damage Taken 733 | . 733 Core 259 | . 259 Absorbed by Shields . | . . Core Remaining (%) 100 | 100 . Volleys Fired . | . . Largest . | . . Hottest . | . . Shots Fired . | . . Gun . | . . Cannon . | . . Launcher . | . . Special . | . . Kinetic . | . . Thermal . | . . Explosive . | . . Electromagnetic . | . . Robot Hit Streak . | . . Robot Miss Streak . | . . Penetration Max . | . . Secondary Targets . | . . Shots Hit Robots . | . . Core Hits 14 | . 14 Critical Kills . | . . Critical Parts Destroyed . | . . Critical Strikes . | . . Melee Attacks . | . . Impact . | . . Slashing . | . . Piercing . | . . Sneak Attacks . | . . Combat Hostiles . | . . Follow-up Attacks . | . . Damage Inflicted 135 | . 135 Guns . | . . Cannons . | . . Explosions . | . . Melee . | . . Ramming 135 | . 135 Kinetic . | . . Thermal . | . . Explosive . | . . Electromagnetic . | . . Impact . | . . Slashing . | . . Piercing . | . . Highest Corruption . | . . Average Corruption . | . . Corruption Purged . | . . Corruption Blocked . | . . Overload Shots . | . . Overflow Damage . | . . Projectiles . | . . Explosions . | . . Melee . | . . Knockbacks . | . . Impact . | . . Kinetic . | . . Secondary . | . . Self-Inflicted Damage 4 | . 4 Shots . | . . Rammed 47 | . 47 Targets Rammed 90 | . 90 Kicked 36 | . 36 Crushed 7 | . 7 Highest Temperature . | . . Average Temperature . | . . Received Heat Transfer 318 | . 318 Siege Activations . | . . Martial Activations . | . . Shielding Activations . | . . Robots Disrupted . | . . Combat Hostiles . | . . Robots Corrupted . | . . Combat Hostiles . | . . Parts Fried . | . . Impact Corruptions . | . . Robots Melted . | . . Combat Hostiles . | . . Parts Melted . | . . Heat Transferred . | . . Parts Sabotaged . | . . Parts Stolen . | . . Parts Stripped . | . . Power Chain Reactions . | . . Alert | -11 -10 ------- Run | Yrd Mat Maximum Alert Level . | . . Low Security (%) 100 | 100 100 Level 1 . | . . Level 2 . | . . Level 3 . | . . Level 4 . | . . Level 5 . | . . High Security . | . . Max Security . | . . Peak Influence 95 | . 95 Initial . | . . Average 31 | . 36 Influence Increases 215 | . 215 Destroy 0b10 Robot/C 160 | . 160 Destroy Leader 40 | . 40 Lose Combat Pursuer 15 | . 15 Influence Decreases 170 | . 170 Time Decay 130 | . 130 Lost Part 40 | . 40 Squads Dispatched 2 | . 2 Investigation 1 | . 1 Extermination . | . . Reinforcement 1 | . 1 Assault . | . . Garrison . | . . Intercept . | . . Searches Triggered . | . . Construction Impeded . | . . Haulers Reinforced . | . . Active Scanning Responses . | . . Cargo Convoy Interrupts . | . . Stealth | -11 -10 --------- Run | Yrd Mat Distress Signals 1 | . 1 Communications Jammed . | . . Distress Signals . | . . Times Spotted 17 | . 17 Peak Tracking Total 5 | . 5 Tactical Retreats 1 | . 1 Traps | -11 -10 ------- Run | Yrd Mat Traps Triggered . | . . Indirectly . | . . Trap Hack Attempts . | . . Triggered . | . . Disarmed . | . . Reprogrammed . | . . Reused . | . . Traps Extracted . | . . Installed . | . . Triggered . | . . Machines | -11 -10 ---------- Run | Yrd Mat Machines Disabled . | . . Max in Single Turn . | . . Machines Repaired . | . . Machines Dismantled . | . . Machines Sabotaged . | . . Overloaded Fab Kills . | . . Hacking | -11 -10 --------- Run | Yrd Mat Machines Accessed 3 | . 3 Terminals 2 | . 2 Fabricators . | . . Repair Stations . | . . Recycling Units 1 | . 1 Scanalyzers . | . . Garrison Access . | . . Total Hacks 9 | . 9 Successful . | . . Failed 9 | . 9 Catastrophic 2 | . 2 Database Lockouts . | . . Manual 6 | . 6 Terminals 6 | . 6 Fabricators . | . . Repair Stations . | . . Recycling Units 3 | . 3 Scanalyzers . | . . Garrison Access . | . . Terminal Hacks . | . . Fabricator Hacks . | . . Repair Station Hacks . | . . Recycling Unit Hacks . | . . Scanalyzer . | . . Garrison Access Hacks . | . . Unauthorized Hacks . | . . Terminals . | . . Fabricators . | . . Repair Stations . | . . Recycling Units . | . . Scanalyzers . | . . Garrison Access . | . . Data Cores Recovered . | . . Used . | . . Hacking Detections 3 | . 3 Full Trace Events 1 | . 1 Feedback Events . | . . Feedback Blocked . | . . Robot Schematics Acquired . | . . Robots Built . | . . Authchips . | . . Time . | . . Total Robot Build Rating . | . . Part Schematics Acquired . | . . Parts Built . | . . Authchips . | . . Time . | . . Total Part Build Rating . | . . Part Studies Acquired . | . . Parts Repaired . | . . Time . | . . Parts Recycled . | . . Recycled Matter . | . . Retrieved Matter . | . . Retrieved Components . | . . Parts Scanalyzed . | . . Part Schematics Acquired . | . . Parts Damaged . | . . Bothacking | -11 -10 ------------ Run | Yrd Mat Used RIF Installer . | . . Robots Hacked . | . . Non-combat . | . . Combat . | . . Robot Hacks Applied . | . . Relay Couplers Released . | . . Fabnet Peak Effective % . | . . Robots Rewired . | . . Allies Hacked . | . . Hacks Repelled . | . . Allies | -11 -10 -------- Run | Yrd Mat Total Allies . | . . Largest Group . | . . Highest-Rated Group . | . . Highest-Rated Ally . | . . Total Orders . | . . Ally Attacks . | . . Total Damage . | . . Kills . | . . Allies Corrupted . | . . Allies Melted . | . . Intel | -11 -10 ------- Run | Yrd Mat Active Infowar (turns) 292 | . 292 Structural 292 | . 292 Robot Analysis Total . | . . Derelict Logs Recovered . | . . Drone Launches . | . . Drone Recoveries . | . . Exploration | -11 -10 ------------- Run | Yrd Mat Turns Passed 576 | 85 491 Spaces Moved 268 | 49 219 Core 2 | 2 . Treads 227 | 47 180 Legs 39 | . 39 Wheels . | . . Hover . | . . Flight . | . . Fastest Speed 50 | 50 120 Average Speed 153 | 155 152 Slowest Speed 160 | 160 160 Overloaded Moves . | . . Propulsion Burnouts . | . . Robots Hopped . | . . Potential Cave-ins . | . . Cave-ins Triggered . | . . Exploration Rate (%) 25 | 3 48 Regions Visited 1 Branch Regions . Pre-discovered Areas . | . . Known Exits Taken . | . . Unknown Exits Taken 1 | 1 . Scrap Searched . | . . Spaces Dug . | . . Terrain Destroyed . | . . Melee . | . . Projectile . | . . AOE . | . . Terrain Rammed . | . . Walls Destroyed . | . . Machines Disabled . | . . Actions | -11 -10 --------- Run | Yrd Mat Total 395 | 56 339 Wait 26 | . 26 Move 267 | 48 219 Hop . | . . Pick Up 4 | 4 . Fast Attach 5 | 4 1 Attach 3 | . 3 Detach . | . . Swap . | . . Drop . | . . Fire . | . . Melee . | . . Ram 6 | . 6 Kick 36 | . 36 Crush 48 | . 48 Escape Stasis . | . . Rewire . | . . Trap . | . . Miscellaneous . | . . Route ------- -11/Scrapyard -10/Materials (discovered 3 exits: [*Mat x2] / [*Min]) History --------- Turn | Location | Event 38 | -11/Scrapyard | Discovered new exit (range 15) 86 | -11/Scrapyard | Entered Materials 317 | -10/Materials | Build established: Mutant 363 | -10/Materials | Discovered new exit (range 12) 415 | -10/Materials | Core integrity fell below 50% 487 | -10/Materials | Core integrity fell below 20% 501 | -10/Materials | Discovered new exit (range 9) 521 | -10/Materials | Discovered new exit (range 11) 577 | -10/Materials | Destroyed by G-34 Mercenary with Small Laser Last Messages --------------- 00495_ Kicked G-34 Mercenary out of the way. 00496_ Kicked G-34 Mercenary. 00497_ Kicked G-34 Mercenary out of the way. 00499_ Kicked G-34 Mercenary. 00501_ Kicked G-34 Mercenary out of the way. 00501_ EXIT=FOUND 00502_ Kicked G-34 Mercenary out of the way. 00503_ Kicked G-34 Mercenary. 00503_ G-34 Mercenary destroyed. 00521_ EXIT=FOUND 00523_ Kicked A-02 Transporter. 00527_ Kicked A-02 Transporter out of the way. 00535_ Kicked A-02 Transporter. 00545_ Kicked A-02 Transporter out of the way. 00547_ Kicked A-02 Transporter. 00548_ Kicked A-02 Transporter out of the way. 00549_ Kicked R-06 Scavenger. 00551_ Kicked A-02 Transporter. 00574_ Kicked G-34 Mercenary out of the way. 00575_ Kicked G-34 Mercenary. Map ----- +----------------------------------------------------+ | ????????#####+### % =%% # """ | | + #### %%%%%% + | | ######+##### ###########+## ### ####### | | ## + T ####### %%%%# ######## | | ## # ##???## """# ######## """ | | ## """ """ # ##???## """# ##?????# """"" | | ## """ """%#% ##???## """# ##?????# """"" | | ## """ """%+%% % ##???## # ##?????# """"" | | ## %# % ##???## # ##?????# """ | | ## # """ ####### # ##?????# | | ## # """ ####### # ##?????# | | ###/##+##### """ ######### ###########+## | | ### ## ##### | | ?## ## % | | ????##### ####+####### | | ????##### ##| #### ############ ######## | | ???????## ## #" ##???? # #??????? | | ??????????## " " #"" ##????????# #??????? | | ??????????## "T" #|| ##????????+ #??????? | | ?????????? + """ #"" < ##????????# #??????? | | ??????????## #!! ##????????# #??????? | | ??????????#######/#"" ##????????# ??????? | | ??????????####### #" t ##????????# ?????? | | ???????## #######%#### ##########?# #????? | | ???????## #######%%% r#g #?# #????? | | ? ^^ k %%%% % %%@% """ #?# #????? | | ???????##########%%% o %#g """ #?# #????? | | ???????########## %%% # % """ ### #????? | | ????????????# # % ###### a / #????? | | ????????????# # # # """ #### #????? | | ????????????# %%+ # """ #??? ??????? | | ????????????##### %# # """ #??????????????? | | ??????????????### %# # #??????????????? | | ???????????????## # ##########??????????????? | | ???????????????## # ##??????????????????????? | | ???????????????## %%# ? ##??????????????????????? | | ???????????????## # ? ##??????????????????????? | | ???????????????## % # ?? + ??????????????????????? | | ???????????????## ##??###??????????????????????? | | ???????????????## ##???????????????????????????? | | ???????????????## #????????????????????????????? | | ???????????????## #????????????????????????????? | | ???????????????? ^ ????????????????????????????? | | ???????????????? ^????????????????????????????? | | ??????????????? ???????????????????????????? | | ???????????????##+### ???????????????????????????? | | ????????????????????? ???????????????????????????? | | ?????????????????????